Cogmind - Beta 17 @@@ ROGUE MODE // 2026.07.09 @ 21:34:10 Player: aperiodic Result: Destroyed by IK-U43(R) with Subdweller Laser Performance ------------- Evolutions (0) 0 Regions Visited (2) 400 Robots Destroyed (27) 135 Value Destroyed (559) 559 Prototype IDs (16) 320 Alien Tech Used (0) 0 Bonus (0) 0 TOTAL SCORE: 1414 Bonus ------- None Cogmind --------- Core Integrity 0/250 Matter 264/300 Energy 216/250 System Corruption 0% Temperature Cool (65) Movement Rolling (120) Ox2 Location -10/Subcaves Parts ------- > --- POWER (1) -------- Ion Engine > --- PROPULSION (2) --- Wheel Compact Wheel > --- UTILITY (2) ------ High-capacity Storage Unit Makeshift Kinetic Plating > --- WEAPON (2) ------- Spread Laser Spread Laser > --- INVENTORY (20) --- Light Ion Engine Light Treads Spiked Treads Cargo Legs Disposable Heat Sink Disposable Heat Sink Medium Storage Unit Medium Matter Pod (100) Seismic Detector Targeting Computer Makeshift Light Armor Plating Makeshift System Shield Self-contained Transmogrifier Spread Laser Subdweller Laser Shrapnel Trap Shrapnel Trap Peak State ------------ > --- POWER ------------ Ion Engine > --- PROPULSION ------- Light Treads Light Treads > --- UTILITY ---------- High-capacity Storage Unit Makeshift Kinetic Plating > --- WEAPON ----------- Spread Laser Spread Laser > --- INVENTORY -------- Light Ion Engine Spiked Treads Cargo Legs Wheel Wheel Compact Wheel Disposable Heat Sink Disposable Heat Sink Disposable Heat Sink Medium Storage Unit Medium Matter Pod Seismic Detector Targeting Computer Core Shielding Self-contained Transmogrifier Beam Rifle Spread Laser Spread Laser Subdweller Laser [Rating: 17] Favorites ----------- Power Ion Engine Engine Ion Engine Propulsion Light Treads Treads Light Treads Wheel Wheel Utility High-capacity Storage Unit Device Seismic Detector Storage High-capacity Storage Unit Protection Makeshift Kinetic Plating Weapon Spread Laser Energy Gun Spread Laser Special Weapon Mining Laser Build | -11 -10 -10 ------- Run | Yrd Mat Sub Slots Evolved . | . . . Power . | . . . Propulsion . | . . . Utility . | . . . Weapon . | . . . Parts Attached 20 | 8 7 5 Power 1 | 1 . . Engine 1 | 1 . . Core . | . . . Reactor . | . . . Propulsion 6 | 2 3 1 Treads 2 | . 2 . Leg . | . . . Wheel 4 | 2 1 1 Hover . | . . . Flight . | . . . Utility 5 | 2 1 2 Device 2 | 1 . 1 Storage 2 | 1 1 . Processor . | . . . Hackware . | . . . Protection 1 | . . 1 Artifact . | . . . Weapon 8 | 3 3 2 Energy Gun 7 | 3 2 2 Energy Cannon . | . . . Ballistic Gun . | . . . Ballistic Cannon . | . . . Launcher . | . . . Special Weapon 1 | . 1 . Impact Weapon . | . . . Slashing Weapon . | . . . Piercing Weapon . | . . . Special Melee Weapon . | . . . Unidentified Prototypes . | . . . Parts Lost 4 | . 1 3 Power . | . . . Propulsion 2 | . 1 1 Utility . | . . . Weapon 2 | . . 2 Highest Loss Streak 2 | . 1 2 To Critical Strikes 1 | . . 1 Average Backups 15 | 3 9 18 Power . | . 1 1 Propulsion 3 | 1 2 4 Utility 6 | . 3 8 Weapon 3 | . 3 4 Tool/Special . | . . . Unused Backups 17 | . . 17 Power 1 | . . 1 Propulsion 2 | . . 2 Utility 9 | . . 9 Weapon 4 | . . 4 Tool/Special 1 | . . 1 Average Slot Usage (%) 99 | . 99 99 Engine 14 | . 14 14 Treads 19 | . 5 24 Wheel 8 | . 22 2 Device 9 | . 14 7 Storage 14 | . 14 14 Protection 4 | . . 6 Energy Gun 26 | . 27 26 Special Weapon 1 | . . 1 Peak Build Rating 17 | 7 11 17 Average Rating 12 | 5 8 14 On Entrance 6 | . 7 11 Avg Prop Armor Cover (%) 11 | . 11 . Naked Turns . | . . . Heaviest Build 59 | 15 52 59 Greatest Support 40 | 26 26 40 Greatest Overweight (x) 4 | 1 4 2 Average Overweight (x) 1 | . 1 1 Largest Inventory Capacity 20 | 8 20 20 Average Capacity 18 | 7 16 20 Most Carried 20 | 5 20 20 Average Carried 16 | 3 10 19 Final Capacity 20 | 8 20 20 Final Carried 20 | 5 20 18 Class Distribution -------------------- 100% | Mutant Dominant Class ---------------- Mutant | -10/Materials Mutant | -10/Subcaves Resources | -11 -10 -10 ----------- Run | Yrd Mat Sub Matter Collected 564 | 290 115 159 Remotely . | . . . Salvage Created 600 | 106 355 139 Parts 47 | 7 30 10 Haulers Intercepted . | . . . Recyclers Shooed . | . . . Parts Field Recycled . | . . . Retrieved Matter . | . . . Parts Self-Destructed 5 | . . 5 Prevented . | . . . Parts Restored . | . . . Kills | -11 -10 -10 ------- Run | Yrd Mat Sub Combat Hostiles Destroyed 15 | . 5 10 Guns 14 | . 4 10 Classes Destroyed 9 | 2 6 1 Worker 1 | . 1 . Builder 1 | . 1 . Tunneler 2 | 1 1 . Recycler 2 | 1 1 . Operator 3 | . 3 . Watcher 3 | . 3 . Swarmer 6 | . 3 3 Grunt 2 | . 2 . Subdweller 7 | . . 7 Best Kill Streak 3 | 2 3 2 Combat Bots Only 3 | . 3 2 Max Kills in Single Turn 1 | 1 1 1 Gunslinging . | . . . Exploded . | . . . Melee . | . . . Uniques/NPCs Destroyed . | . . . Combat | -11 -10 -10 -------- Run | Yrd Mat Sub Hostile Shots Fired 94 | . 18 76 Missed 22 | . 5 17 Hits 72 | . 13 59 Projectile 72 | . 13 59 Critical Strikes 4 | . . 4 Damage Taken 1035 | . 156 879 Core 268 | . 45 223 Absorbed by Shields . | . . . Ignored by Resistances 59 | . . 59 Core Remaining (%) 100 | 100 . . Volleys Fired 98 | 6 45 47 Largest 2 | 2 2 2 Hottest 130 | 80 130 130 Shots Fired 159 | 10 65 84 Gun 151 | 10 61 80 Cannon . | . . . Launcher . | . . . Special 8 | . 4 4 Kinetic . | . . . Thermal 126 | 2 40 84 Explosive . | . . . Electromagnetic 33 | 8 25 . Robot Hit Streak 21 | 4 8 21 Robot Miss Streak 9 | 3 3 9 Penetration Max . | . . . Secondary Targets 2 | . . 2 Max Gunslinging Chain 1 | . . 1 Shots Hit Robots 116 | 7 41 68 Core Hits 88 | 3 23 62 Critical Kills . | . . . Critical Parts Destroyed . | . . . Critical Strikes 1 | 1 . . Corrupt 1 | 1 . . Melee Attacks . | . . . Impact . | . . . Slashing . | . . . Piercing . | . . . Sneak Attacks . | . . . Combat Hostiles . | . . . Follow-up Attacks . | . . . Damage Inflicted 1677 | 85 546 1046 Guns 1677 | 85 546 1046 Cannons . | . . . Explosions . | . . . Melee . | . . . Ramming . | . . . Kinetic . | . . . Thermal 1360 | 21 293 1046 Explosive . | . . . Electromagnetic 317 | 64 253 . Impact . | . . . Slashing . | . . . Piercing . | . . . Highest Corruption . | . . . Average Corruption . | . . . Corruption Purged . | . . . Corruption Blocked . | . . . Overload Shots . | . . . Overflow Damage . | . . . Projectiles . | . . . Explosions . | . . . Melee . | . . . Knockbacks . | . . . Impact . | . . . Kinetic . | . . . Secondary . | . . . Self-Inflicted Damage . | . . . Shots . | . . . Rammed . | . . . Targets Rammed . | . . . Kicked . | . . . Crushed . | . . . Highest Temperature 207 | 54 207 114 Average Temperature 45 | 25 55 39 Received Heat Transfer 141 | . 63 78 Siege Activations . | . . . Martial Activations . | . . . Shielding Activations . | . . . Robots Disrupted . | . . . Combat Hostiles . | . . . Robots Corrupted 1 | . 1 . Combat Hostiles 1 | . 1 . Parts Fried 2 | 1 1 . Impact Corruptions . | . . . Robots Melted . | . . . Combat Hostiles . | . . . Parts Melted 2 | . 1 1 Heat Transferred 1950 | 50 595 1305 Parts Sabotaged . | . . . Parts Stolen . | . . . Parts Stripped . | . . . Power Chain Reactions . | . . . Alert | -11 -10 -10 ------- Run | Yrd Mat Sub Maximum Alert Level . | . . . Low Security (%) 100 | 100 100 . Level 1 . | . . . Level 2 . | . . . Level 3 . | . . . Level 4 . | . . . Level 5 . | . . . High Security . | . . . Max Security . | . . . Peak Influence 128 | 5 128 . Initial . | . . . Average 32 | . 36 . Influence Increases 327 | 10 247 70 Destroy 0b10 Robot/C 160 | . 100 60 Destroy 0b10 Robot/NC 60 | 10 50 . Destroy Leader 36 | . 26 10 Successful Hack 23 | . 23 . Disable Machine 15 | . 15 . Destroy Structure 3 | . 3 . Lose Combat Pursuer 30 | . 30 . Influence Decreases 291 | 10 247 34 Time Decay 263 | 10 237 16 Lost Part 28 | . 10 18 Squads Dispatched 2 | . 2 . Investigation . | . . . Extermination . | . . . Reinforcement 2 | . 2 . Assault . | . . . Garrison . | . . . Intercept . | . . . Searches Triggered . | . . . Construction Impeded . | . . . Haulers Reinforced . | . . . Active Scanning Responses . | . . . Cargo Convoy Interrupts . | . . . Stealth | -11 -10 -10 --------- Run | Yrd Mat Sub Distress Signals 1 | . 1 . Communications Jammed . | . . . Distress Signals . | . . . Times Spotted 25 | . 14 11 Peak Tracking Total 4 | . 4 3 Tactical Retreats 1 | . 1 . Traps | -11 -10 -10 ------- Run | Yrd Mat Sub Traps Triggered . | . . . Indirectly . | . . . Trap Hack Attempts . | . . . Triggered . | . . . Disarmed . | . . . Reprogrammed . | . . . Reused . | . . . Traps Extracted . | . . . Installed . | . . . Triggered . | . . . Most Traps Carried 2 | . . 2 Machines | -11 -10 -10 ---------- Run | Yrd Mat Sub Machines Disabled 2 | . 1 1 Max in Single Turn 1 | . 1 1 Machines Repaired . | . . . Machines Dismantled . | . . . Machines Sabotaged . | . . . Overloaded Fab Kills . | . . . Hacking | -11 -10 -10 --------- Run | Yrd Mat Sub Machines Accessed 4 | . 2 2 Terminals 2 | . 2 . Fabricators . | . . . Repair Stations . | . . . Recycling Units . | . . . Scanalyzers . | . . . Garrison Access . | . . . Total Hacks 12 | . 7 5 Successful 10 | . 5 5 Failed 2 | . 2 . Catastrophic 1 | . 1 . Database Lockouts . | . . . Manual 5 | . 5 . Terminals 7 | . 7 . Fabricators . | . . . Repair Stations . | . . . Recycling Units . | . . . Scanalyzers . | . . . Garrison Access . | . . . Terminal Hacks 7 | . 2 5 Record 4 | . . 4 Prototype ID Bank 1 | . 1 . Hauler Manifests 1 | . 1 . Proto ID Catalog 1 | . . 1 Fabricator Hacks . | . . . Repair Station Hacks . | . . . Recycling Unit Hacks . | . . . Scanalyzer . | . . . Garrison Access Hacks . | . . . Unauthorized Hacks 3 | . 3 . Terminals 3 | . 3 . Botnet 2 | . 2 . Skim 1 | . 1 . Fabricators . | . . . Repair Stations . | . . . Recycling Units . | . . . Scanalyzers . | . . . Garrison Access . | . . . Data Cores Recovered 1 | . 1 . Used . | . . . Hacking Detections 2 | . 2 . Full Trace Events . | . . . Feedback Events . | . . . Feedback Blocked . | . . . Robot Schematics Acquired . | . . . Robots Built . | . . . Authchips . | . . . Time . | . . . Total Robot Build Rating . | . . . Part Schematics Acquired . | . . . Parts Built . | . . . Authchips . | . . . Time . | . . . Total Part Build Rating . | . . . Part Studies Acquired . | . . . Parts Repaired . | . . . Time . | . . . Parts Recycled . | . . . Recycled Matter . | . . . Retrieved Matter . | . . . Retrieved Components . | . . . Parts Scanalyzed . | . . . Part Schematics Acquired . | . . . Parts Damaged . | . . . Bothacking | -11 -10 -10 ------------ Run | Yrd Mat Sub Used RIF Installer . | . . . Robots Hacked . | . . . Non-combat . | . . . Combat . | . . . Robot Hacks Applied . | . . . Relay Couplers Released . | . . . Fabnet Peak Effective % . | . . . Robots Rewired . | . . . Allies Hacked . | . . . Hacks Repelled . | . . . Allies | -11 -10 -10 -------- Run | Yrd Mat Sub Total Allies . | . . . Largest Group . | . . . Highest-Rated Group . | . . . Highest-Rated Ally . | . . . Total Orders . | . . . Ally Attacks . | . . . Total Damage . | . . . Kills . | . . . Allies Corrupted . | . . . Allies Melted . | . . . Intel | -11 -10 -10 ------- Run | Yrd Mat Sub Active Infowar (turns) 1865 | 14 772 1079 Seismic 1865 | 14 772 1079 Robot Analysis Total . | . . . Derelict Logs Recovered . | . . . Drone Launches . | . . . Drone Recoveries . | . . . Exploration | -11 -10 -10 ------------- Run | Yrd Mat Sub Turns Passed 3062 | 95 772 2195 Spaces Moved 1457 | 65 516 876 Core 3 | 3 . . Treads 760 | . 4 756 Legs . | . . . Wheels 694 | 62 512 120 Hover . | . . . Flight . | . . . Fastest Speed 50 | 50 90 105 Average Speed 177 | 87 111 223 Slowest Speed 240 | 95 160 240 Overloaded Moves . | . . . Propulsion Burnouts . | . . . Robots Hopped . | . . . Potential Cave-ins . | . . . Cave-ins Triggered . | . . . Exploration Rate (%) 41 | 3 66 55 Regions Visited 2 Branch Regions 1 Pre-discovered Areas . | . . . Known Exits Taken . | . . . Unknown Exits Taken 2 | 1 1 . Scrap Searched 1 | . . 1 Spaces Dug 2 | . 2 . Terrain Destroyed 4 | . 4 . Melee . | . . . Projectile 4 | . 4 . AOE . | . . . Terrain Rammed . | . . . Walls Destroyed . | . . . Machines Disabled . | . . . Actions | -11 -10 -10 --------- Run | Yrd Mat Sub Total 1743 | 87 635 1021 Wait 107 | 2 43 62 Move 1455 | 64 515 876 Hop . | . . . Pick Up 31 | 5 17 9 Fast Attach 7 | 7 . . Attach 4 | . 1 3 Detach . | . . . Swap 30 | 3 12 15 Drop 11 | . 2 9 Fire 98 | 6 45 47 Melee . | . . . Ram . | . . . Kick . | . . . Crush . | . . . Escape Stasis . | . . . Rewire . | . . . Trap . | . . . Miscellaneous . | . . . Route ------- -11/Scrapyard -10/Materials (discovered 3 exits: [*Mat] / [*Min] / *Sub) -10/Subcaves (discovered 2 exits: [*Mat x2]) History --------- Turn | Location | Event 25 | -11/Scrapyard | Discovered new exit (range 15) 96 | -11/Scrapyard | Entered Materials 245 | -10/Materials | Discovered new exit (range 16) 317 | -10/Materials | Build established: Mutant 424 | -10/Materials | Discovered new exit (range 12) 862 | -10/Materials | Discovered new exit (range 6) 868 | -10/Materials | Entered Subcaves 956 | -10/Subcaves | Core integrity fell below 50% 1291 | -10/Subcaves | Visited 4L-MR0's lab 1313 | -10/Subcaves | Found Prototype Device 1325 | -10/Subcaves | Found Cargo Legs 2165 | -10/Subcaves | A swath of the cavern ceiling suddenly collapsed 2269 | -10/Subcaves | Shifting Twisted Machinery released Shrapnel Trap 2270 | -10/Subcaves | Shifting Twisted Machinery released Shrapnel Trap 2577 | -10/Subcaves | Discovered new exit (range 9) 2695 | -10/Subcaves | Visited Clippyterm 2702 | -10/Subcaves | Learned 40 Factory zone layouts 2702 | -10/Subcaves | Learned Factory garrison access intel 2910 | -10/Subcaves | Core integrity fell below 20% 2925 | -10/Subcaves | Discovered new exit (range 15) 3063 | -10/Subcaves | Destroyed by IK-U43(R) with Subdweller Laser Last Messages --------------- apprentices. 02753_ Dropped Core Shielding. 02753_ Acquired Mak. Light Armor Plating. 02892_ S-10 Pest destroyed. 02906_ Critical hit (Destroy). 02906_ Lgt. Treads destroyed. 02911_ Spread Laser destroyed. 02913_ S-10 Pest destroyed. 02913_ Switching to secondary target: S-10 Pest. 02916_ S-10 Pest destroyed. 02921_ Acquired 11 matter. 02925_ EXIT=FOUND 02928_ Flight Unit fries itself beyond repair. 02928_ Lgt. Ion Engine fries itself beyond repair. 02930_ Flight Unit fries itself beyond repair. 02935_ Acquired 3 matter. 03054_ Sub. Laser shoots sparks and powers down. 03058_ TJ-JI1(R) destroyed. 03058_ Switching to secondary target: IK-U43(R). Map ----- +----------------------------------------------------+ | ?????????????????????????????????????????????????? | | ?????????????????????????????????????????????????? | | ?????????????????????????????????????????????????? | | ???????????????????????????? ????????????????????? | | ???????????????????????????? ????????????????????? | | ??????????????????????????? ????????????????????? | | ???????????????####????### #????????????????????? | | ???????????????# #???? # ##???????????????????? | | ???????????????# ##???" "" ###?????????????????? | | ???????????????# #???" "" # #?????????????????? | | ???????????????# #???" ??????????????????? | | ???????????????# ""##??# ???????????????????? | | ????????????####""" ##?# #????????????????????? | | ????????????# ### #?????????????????????? | | ???????????## """""" ## #??????????????????????? | | ???????????# """"""" #?????#????????????????? | | ???????????# """""""## #??? ##???????????????? | | ???????????# "" "### #?# #???????????????? | | ???????????# "" ""# # #???????????????? | | ??????####?# "" "" ###??????????????? | | ####### ### "" "" " " ???????????? | | # " "## "" " ????????????? | | " " """ ###### ## ????????????? | | """" """###### ### ######???# ????????????? | | ## #????# &%= ##????????????????????? | | ### #????# R @ ##???????????????????? | | ##?###???## #???????????????????? | | ## #????????# ### #???????????????????? | | ### #????????### #?# #???????????????????? | | #?## ##??????????# #?####???????????????????? | | ###??###??????????# ##????????????????????????? | | ??????????????????######?????????????????????????? | | ?????????????????????????????????????????????????? | | ?????????????????????????????????????????????????? | | ?????????????????????????????????????????????????? | | ?????????????????????????????????????????????????? | | ?????????????????????????????????????????????????? | | ?????????????????????????????????????????????????? | | ?????????????????????????????????????????????????? | | ?????????????????????????????????????????????????? | | ?????????????????????????????????????????????????? | | ?????????????????????????????????????????????????? | | ?????????????????????????????????????????????????? | | ?????????????????????????????????????????????????? | | ?????????????????????????????????????????????????? | | ?????????????????????????????????????????????????? | | ?????????????????????????????????????????????????? | | | | | | | +----------------------------------------------------+ Best States ------------- Heat Dissipation 25 Coolant Potential 50 Energy Generation 10 Energy Capacity 250 Matter Stores 300 Matter Capacity 300 Sight Range 16 Terrain Scan Density 10 Armor Coverage 100 Resistance: KI 10 Evasion (%) 44 Recoil Reduction 2 Item Schematics ----------------- None Robot Schematics ------------------ None Fabricated ------------ Nothing Repaired ---------- Nothing Studied --------- None Alien Tech Used ----------------- None Achievements -------------- None Challenges ------------ None Game ------ Seed EnergyNetworkedBlade Manual? 0 Play Time 00:29:02 Cumulative 713.1 hours Start 2026.07.09 @ 07:55:17 End 2026.07.09 @ 21:34:10 Sessions 3 Manual Loads 0 Difficulty Rogue Special Mode None Game No. 240 Rogue 236 Adventurer 4 Explorer 0 Win Type - Total 21 Types 9/2/6/0/0/0/2/2/0/0 Lore% 72 Gallery% 73 Achievement% 54 Wizard Run 0 Options --------- Layout 1 ASCII 0 Keyboard 0 Movement Arrows Keybinds 0 Fullscreen 1 Font 40/SmallcapsGlow Map View 50x40 Zoom Use 0% Tactical HUD 1 Map Filters NONE Filters NONE Steam 1 RUN: 58423f8d-a2de-4b44-81de-f816eb221ed4